[Event "*** SCC Grand Prix: Titled Tuesday Blitz"]
[Site "Chess.com"]
[Date "2020.08.11"]
[Round "3"]
[White "AleksanderHnydiuk"]
[Black "Ladislav1969"]
[Result "1-0"]
[WhiteElo "2559"]
[BlackElo "2338"]
[TimeControl "180+1"]
[EndTime "10:28:56 PDT"]
[Termination "AleksanderHnydiuk won on time"]

1. e4 {[%clk 0:03:00.9]} 1... c5 {[%clk 0:02:59.7]} 2. Nf3 {[%clk 0:03:00.6]}
2... e6 {[%clk 0:03:00.3]} 3. d4 {[%clk 0:03:00.2]} 3... cxd4 {[%clk 0:03:01.2]}
4. Nxd4 {[%clk 0:03:00.8]} 4... a6 {[%clk 0:03:02.1]} 5. Bd3 {[%clk 0:02:59.7]}
5... Nc6 {[%clk 0:02:55.2]} 6. Nxc6 {[%clk 0:02:57.7]} 6... dxc6 {[%clk
0:02:55.4]} 7. Nd2 {[%clk 0:02:54.3]} 7... e5 {[%clk 0:02:47.1]} 8. Nc4 {[%clk
0:02:54.2]} 8... Nf6 {[%clk 0:02:28.7]} 9. a4 {[%clk 0:02:46.4]} 9... Be6 {[%clk
0:02:25]} 10. O-O {[%clk 0:02:31.1]} 10... Bxc4 {[%clk 0:02:12.3]} 11. Bxc4
{[%clk 0:02:32]} 11... Qxd1 {[%clk 0:01:59.4]} 12. Rxd1 {[%clk 0:02:32.9]} 12...
Nxe4 {[%clk 0:01:59.6]} 13. Re1 {[%clk 0:02:32.9]} 13... f5 {[%clk 0:01:56.7]}
14. f3 {[%clk 0:02:15]} 14... Bc5+ {[%clk 0:01:25.2]} 15. Kf1 {[%clk 0:02:14.2]}
15... Bb4 {[%clk 0:01:25.4]} 16. c3 {[%clk 0:01:50.6]} 16... Nxc3 {[%clk
0:01:25.1]} 17. Rxe5+ {[%clk 0:01:40.5]} 17... Kd7 {[%clk 0:01:09.4]} 18. Rxf5
{[%clk 0:01:33.3]} 18... Nd5 {[%clk 0:00:54.8]} 19. Bxd5 {[%clk 0:01:22.5]}
19... cxd5 {[%clk 0:00:54.2]} 20. Rxd5+ {[%clk 0:01:23]} 20... Kc6 {[%clk
0:00:52]} 21. Rd1 {[%clk 0:01:18.2]} 21... Rhe8 {[%clk 0:00:31.9]} 22. Bf4
{[%clk 0:01:10.2]} 22... Re6 {[%clk 0:00:23.1]} 23. Rac1+ {[%clk 0:01:09.6]}
23... Kb6 {[%clk 0:00:23.3]} 24. Bc7+ {[%clk 0:00:59.1]} 24... Ka7 {[%clk
0:00:22.2]} 25. a5 {[%clk 0:00:59.4]} 25... Rae8 {[%clk 0:00:15.7]} 26. Bb6+
{[%clk 0:00:57.9]} 26... Kb8 {[%clk 0:00:15]} 27. Rc4 {[%clk 0:00:50.5]} 27...
Bd6 {[%clk 0:00:07.3]} 28. Rcd4 {[%clk 0:00:46]} 28... Bc7 {[%clk 0:00:06]} 29.
Bxc7+ {[%clk 0:00:42.7]} 29... Kxc7 {[%clk 0:00:06.2]} 30. Rd7+ {[%clk 0:00:43]}
30... Kc6 {[%clk 0:00:03.5]} 31. Rxg7 {[%clk 0:00:41.9]} 31... Re2 {[%clk
0:00:03]} 32. Rc1+ {[%clk 0:00:41.3]} 1-0

[Event "*** SCC Grand Prix: Titled Tuesday Blitz"]
[Site "Chess.com"]
[Date "2020.08.11"]
[Round "3"]
[White "Andrii_Prydun"]
[Black "TudorAnton"]
[Result "1-0"]
[WhiteElo "2358"]
[BlackElo "2553"]
[TimeControl "180+1"]
[EndTime "10:28:57 PDT"]
[Termination "Andrii_Prydun won by resignation"]

1. d4 {[%clk 0:03:00.9]} 1... Nf6 {[%clk 0:02:58.1]} 2. Nc3 {[%clk 0:03:00.7]}
2... d5 {[%clk 0:02:55.8]} 3. Bf4 {[%clk 0:03:00.3]} 3... Bf5 {[%clk 0:02:49.5]}
4. f3 {[%clk 0:02:57.6]} 4... e6 {[%clk 0:02:45.7]} 5. g4 {[%clk 0:02:52.7]}
5... Bg6 {[%clk 0:02:31.9]} 6. h4 {[%clk 0:02:52.2]} 6... h5 {[%clk 0:02:26.2]}
7. g5 {[%clk 0:02:51.9]} 7... Nfd7 {[%clk 0:02:27]} 8. e3 {[%clk 0:02:51.4]}
8... Bb4 {[%clk 0:02:01.1]} 9. Bd3 {[%clk 0:02:48.7]} 9... Nf8 {[%clk
0:01:51.5]} 10. Ne2 {[%clk 0:02:46.2]} 10... Nbd7 {[%clk 0:01:43.2]} 11. a3
{[%clk 0:02:43.1]} 11... Bd6 {[%clk 0:01:41.1]} 12. Bxd6 {[%clk 0:02:39]} 12...
cxd6 {[%clk 0:01:32.7]} 13. Nf4 {[%clk 0:02:38.8]} 13... Qb6 {[%clk 0:01:27.4]}
14. Nxg6 {[%clk 0:02:29.1]} 14... Nxg6 {[%clk 0:01:28.3]} 15. Bxg6 {[%clk
0:02:28.4]} 15... fxg6 {[%clk 0:01:23.6]} 16. Qd3 {[%clk 0:02:17]} 16... Nf8
{[%clk 0:01:22.3]} 17. Kf2 {[%clk 0:02:01.4]} 17... Rc8 {[%clk 0:01:17.8]} 18.
Rab1 {[%clk 0:01:46.4]} 18... Kf7 {[%clk 0:01:16]} 19. Ne2 {[%clk 0:01:34.6]}
19... Qc6 {[%clk 0:01:05.8]} 20. Rhc1 {[%clk 0:01:33.2]} 20... Qc4 {[%clk
0:01:05.4]} 21. Nf4 {[%clk 0:01:23.5]} 21... Qxd3 {[%clk 0:01:03.7]} 22. Nxd3
{[%clk 0:01:24.4]} 22... Nd7 {[%clk 0:01:02.9]} 23. c3 {[%clk 0:01:10.8]} 23...
a6 {[%clk 0:00:56.1]} 24. e4 {[%clk 0:01:09.9]} 24... dxe4 {[%clk 0:00:55]} 25.
fxe4 {[%clk 0:01:09.8]} 25... Ke7 {[%clk 0:00:51.5]} 26. Ke3 {[%clk 0:01:08.7]}
26... Nb6 {[%clk 0:00:51.3]} 27. Nf4 {[%clk 0:01:05.1]} 27... Nc4+ {[%clk
0:00:48.4]} 28. Kd3 {[%clk 0:01:04.3]} 28... Kf7 {[%clk 0:00:48.7]} 29. Rf1
{[%clk 0:01:01.1]} 29... Rhd8 {[%clk 0:00:46.3]} 30. Nxh5+ {[%clk 0:00:59.4]}
30... Kg8 {[%clk 0:00:46.3]} 31. Nf4 {[%clk 0:00:59.3]} 31... e5 {[%clk
0:00:44.6]} 32. Nxg6 {[%clk 0:00:58]} 32... Rc7 {[%clk 0:00:41.4]} 33. d5 {[%clk
0:00:55]} 33... Rdc8 {[%clk 0:00:41.6]} 34. Ke2 {[%clk 0:00:30]} 34... b5 {[%clk
0:00:39.7]} 35. Rf3 {[%clk 0:00:28.1]} 35... a5 {[%clk 0:00:36.3]} 36. h5 {[%clk
0:00:24.4]} 36... a4 {[%clk 0:00:36.3]} 37. Rbf1 {[%clk 0:00:18.2]} 1-0

[Event "*** SCC Grand Prix: Titled Tuesday Blitz"]
[Site "Chess.com"]
[Date "2020.08.11"]
[Round "3"]
[White "GMKrikor"]
[Black "Nemsko"]
[Result "1-0"]
[WhiteElo "2732"]
[BlackElo "2344"]
[TimeControl "180+1"]
[EndTime "10:29:01 PDT"]
[Termination "GMKrikor won by resignation"]

1. e4 {[%clk 0:03:00.9]} 1... e5 {[%clk 0:02:59.6]} 2. Bc4 {[%clk 0:03:00.3]}
2... Nc6 {[%clk 0:02:57.6]} 3. Nc3 {[%clk 0:02:59.6]} 3... Nf6 {[%clk
0:02:56.8]} 4. d3 {[%clk 0:02:59.8]} 4... Be7 {[%clk 0:02:56.9]} 5. f4 {[%clk
0:02:57.7]} 5... d6 {[%clk 0:02:53.7]} 6. Nf3 {[%clk 0:02:57.6]} 6... Bg4 {[%clk
0:02:53.5]} 7. O-O {[%clk 0:02:53.1]} 7... Nd4 {[%clk 0:02:50.4]} 8. fxe5 {[%clk
0:02:52.3]} 8... Bxf3 {[%clk 0:02:43.4]} 9. gxf3 {[%clk 0:02:27.9]} 9... dxe5
{[%clk 0:02:43.3]} 10. f4 {[%clk 0:02:22.2]} 10... Qd6 {[%clk 0:02:40.1]} 11.
Kh1 {[%clk 0:02:20.6]} 11... O-O-O {[%clk 0:02:30.5]} 12. fxe5 {[%clk
0:02:19.5]} 12... Qxe5 {[%clk 0:02:30.3]} 13. Bf4 {[%clk 0:02:20.2]} 13... Qh5
{[%clk 0:02:13.7]} 14. e5 {[%clk 0:01:26.5]} 14... Qxd1 {[%clk 0:02:09.3]} 15.
Raxd1 {[%clk 0:01:27.4]} 15... Nh5 {[%clk 0:02:01.2]} 16. Bc1 {[%clk 0:01:11.7]}
16... Nxc2 {[%clk 0:01:18.9]} 17. Bxf7 {[%clk 0:01:03.7]} 17... g6 {[%clk
0:01:17]} 18. Nd5 {[%clk 0:01:00.9]} 18... Bc5 {[%clk 0:01:08.7]} 19. Bg5 {[%clk
0:00:59.7]} 19... Rdf8 {[%clk 0:00:55.5]} 20. e6 {[%clk 0:00:55.5]} 20... c6
{[%clk 0:00:38.6]} 21. e7 {[%clk 0:00:32.1]} 21... Rxf7 {[%clk 0:00:34.9]} 22.
Rxf7 {[%clk 0:00:33]} 22... cxd5 {[%clk 0:00:31.1]} 23. Rc1 {[%clk 0:00:33.2]}
23... Kd7 {[%clk 0:00:30.5]} 24. Rxc2 {[%clk 0:00:30.5]} 24... Ke6 {[%clk
0:00:21.9]} 25. Rxh7 {[%clk 0:00:20.9]} 25... Ng3+ {[%clk 0:00:15]} 26. Kg2
{[%clk 0:00:15]} 26... Rxh7 {[%clk 0:00:10.3]} 27. e8=Q+ {[%clk 0:00:14.7]} 1-0

[Event "*** SCC Grand Prix: Titled Tuesday Blitz"]
[Site "Chess.com"]
[Date "2020.08.11"]
[Round "3"]
[White "adotand"]
[Black "volcanoexplorer"]
[Result "0-1"]
[WhiteElo "2785"]
[BlackElo "2622"]
[TimeControl "180+1"]
[EndTime "10:29:02 PDT"]
[Termination "volcanoexplorer won by resignation"]

1. d4 {[%clk 0:03:00.9]} 1... Nf6 {[%clk 0:02:59.6]} 2. Nf3 {[%clk 0:03:01.3]}
2... e6 {[%clk 0:02:59.3]} 3. c4 {[%clk 0:03:01.4]} 3... d5 {[%clk 0:02:58.7]}
4. g3 {[%clk 0:03:01.6]} 4... Bb4+ {[%clk 0:02:58.2]} 5. Bd2 {[%clk 0:03:01.4]}
5... Be7 {[%clk 0:02:58.4]} 6. Bg2 {[%clk 0:03:01.8]} 6... O-O {[%clk
0:02:58.2]} 7. O-O {[%clk 0:03:01.5]} 7... c6 {[%clk 0:02:58.7]} 8. Na3 {[%clk
0:03:00.1]} 8... Nbd7 {[%clk 0:02:53.9]} 9. Rc1 {[%clk 0:02:58.4]} 9... Ne4
{[%clk 0:02:42]} 10. Be3 {[%clk 0:02:58.8]} 10... b6 {[%clk 0:02:14.4]} 11. Ne1
{[%clk 0:02:49.9]} 11... f5 {[%clk 0:02:10.6]} 12. Nd3 {[%clk 0:02:50]} 12...
Bb7 {[%clk 0:02:04.5]} 13. Nb1 {[%clk 0:02:35.7]} 13... Rc8 {[%clk 0:01:56]} 14.
b3 {[%clk 0:02:34.4]} 14... Qe8 {[%clk 0:01:50.4]} 15. Nc3 {[%clk 0:02:33]}
15... c5 {[%clk 0:01:42.9]} 16. cxd5 {[%clk 0:02:23.1]} 16... exd5 {[%clk
0:01:39.3]} 17. Nf4 {[%clk 0:02:19.9]} 17... Ndf6 {[%clk 0:01:22.1]} 18. dxc5
{[%clk 0:02:13.9]} 18... Bxc5 {[%clk 0:01:11.4]} 19. Bxc5 {[%clk 0:01:45.7]}
19... bxc5 {[%clk 0:01:11.9]} 20. Na4 {[%clk 0:01:27.1]} 20... Qe7 {[%clk
0:01:03.1]} 21. Qc2 {[%clk 0:01:23.1]} 21... c4 {[%clk 0:00:40.9]} 22. Qb2
{[%clk 0:01:18.7]} 22... Rfd8 {[%clk 0:00:38.4]} 23. Rfd1 {[%clk 0:01:15.4]}
23... Bc6 {[%clk 0:00:35.8]} 24. Nc3 {[%clk 0:01:11.1]} 24... Nxf2 {[%clk
0:00:24]} 25. Ncxd5 {[%clk 0:00:43.7]} 25... Nxd5 {[%clk 0:00:22.2]} 26. Nxd5
{[%clk 0:00:43.9]} 26... Qc5 {[%clk 0:00:09.9]} 27. e3 {[%clk 0:00:39.2]} 27...
Nxd1 {[%clk 0:00:08.1]} 28. Rxd1 {[%clk 0:00:37.1]} 28... Bxd5 {[%clk
0:00:08.6]} 29. Re1 {[%clk 0:00:35]} 29... c3 {[%clk 0:00:08.6]} 30. Qc2 {[%clk
0:00:34.7]} 30... Bxg2 {[%clk 0:00:08.9]} 31. Kxg2 {[%clk 0:00:35.6]} 31... Qd5+
{[%clk 0:00:09.4]} 32. Kg1 {[%clk 0:00:35.6]} 32... Qd2 {[%clk 0:00:09.8]} 33.
Rc1 {[%clk 0:00:33.9]} 33... Qxc2 {[%clk 0:00:09.5]} 34. Rxc2 {[%clk 0:00:34.8]}
34... Rd2 {[%clk 0:00:09.9]} 35. Rc1 {[%clk 0:00:34.5]} 35... c2 {[%clk
0:00:10.5]} 0-1

[Event "*** SCC Grand Prix: Titled Tuesday Blitz"]
[Site "Chess.com"]
[Date "2020.08.11"]
[Round "3"]
[White "dopolian"]
[Black "Terao90"]
[Result "0-1"]
[WhiteElo "2521"]
[BlackElo "2326"]
[TimeControl "180+1"]
[EndTime "10:29:04 PDT"]
[Termination "Terao90 won by resignation"]

1. e4 {[%clk 0:03:00.3]} 1... c5 {[%clk 0:03:00]} 2. Nf3 {[%clk 0:03:00.4]} 2...
Nc6 {[%clk 0:02:59.8]} 3. d4 {[%clk 0:03:00.7]} 3... cxd4 {[%clk 0:03:00.7]} 4.
Nxd4 {[%clk 0:03:01.6]} 4... g6 {[%clk 0:03:01.1]} 5. c4 {[%clk 0:03:01.5]} 5...
Nf6 {[%clk 0:03:01]} 6. Nc3 {[%clk 0:02:59.2]} 6... d6 {[%clk 0:03:00.5]} 7. Be2
{[%clk 0:02:58.2]} 7... Nxd4 {[%clk 0:03:00.5]} 8. Qxd4 {[%clk 0:02:58.2]} 8...
Bg7 {[%clk 0:03:01.4]} 9. O-O {[%clk 0:02:57.7]} 9... O-O {[%clk 0:03:00]} 10.
Qe3 {[%clk 0:02:57.7]} 10... a5 {[%clk 0:02:57.9]} 11. f3 {[%clk 0:02:54]} 11...
a4 {[%clk 0:02:57.4]} 12. Bd2 {[%clk 0:02:46.2]} 12... Be6 {[%clk 0:02:56.6]}
13. b3 {[%clk 0:02:42.8]} 13... axb3 {[%clk 0:02:37.8]} 14. axb3 {[%clk
0:02:43.7]} 14... Nd7 {[%clk 0:02:31.8]} 15. Rxa8 {[%clk 0:02:26.1]} 15... Qxa8
{[%clk 0:02:32.7]} 16. Nb5 {[%clk 0:02:26.3]} 16... Qa2 {[%clk 0:02:15.9]} 17.
Nd4 {[%clk 0:02:10.4]} 17... Nc5 {[%clk 0:02:06.3]} 18. b4 {[%clk 0:02:01.5]}
18... Bxd4 {[%clk 0:02:04.3]} 19. Qxd4 {[%clk 0:01:59.9]} 19... Nb3 {[%clk
0:02:04.5]} 20. Qc3 {[%clk 0:01:23.2]} 20... Qxd2 {[%clk 0:02:01.9]} 21. Qxd2
{[%clk 0:01:23.4]} 21... Nxd2 {[%clk 0:02:01.7]} 22. Rc1 {[%clk 0:01:20.8]}
22... Rc8 {[%clk 0:01:59.5]} 23. c5 {[%clk 0:01:18.6]} 23... dxc5 {[%clk
0:01:59.5]} 24. bxc5 {[%clk 0:01:17.8]} 24... Nb3 {[%clk 0:01:59.6]} 25. Rb1
{[%clk 0:01:14.6]} 25... Nxc5 {[%clk 0:01:59.1]} 26. Rb5 {[%clk 0:01:11.7]}
26... Bd7 {[%clk 0:01:54.3]} 27. Rb6 {[%clk 0:01:09.4]} 27... Bc6 {[%clk
0:01:52.7]} 28. Kf2 {[%clk 0:01:06.7]} 28... e5 {[%clk 0:01:50.5]} 29. Rb2
{[%clk 0:01:03]} 29... Kf8 {[%clk 0:01:50.4]} 30. Ra2 {[%clk 0:01:01]} 30... Ke7
{[%clk 0:01:49]} 31. Ke3 {[%clk 0:00:58.4]} 31... f6 {[%clk 0:01:43.8]} 32. h4
{[%clk 0:00:57.1]} 32... Nb3 {[%clk 0:01:43.3]} 33. Rb2 {[%clk 0:00:55]} 33...
Nd4 {[%clk 0:01:42.5]} 34. Bc4 {[%clk 0:00:49.7]} 34... Ra8 {[%clk 0:01:42]} 35.
Kf2 {[%clk 0:00:45.1]} 35... b5 {[%clk 0:01:39]} 36. Bf1 {[%clk 0:00:44.9]}
36... Ra3 {[%clk 0:01:35.9]} 37. h5 {[%clk 0:00:43.5]} 37... gxh5 {[%clk
0:01:34.9]} 38. Rb1 {[%clk 0:00:38.4]} 38... Ra2+ {[%clk 0:01:32.6]} 39. Kg3
{[%clk 0:00:37.6]} 39... Ra4 {[%clk 0:01:20.7]} 40. Kh4 {[%clk 0:00:31.5]} 40...
b4 {[%clk 0:01:20.3]} 41. Kxh5 {[%clk 0:00:30.7]} 41... b3 {[%clk 0:01:11]} 42.
Kh6 {[%clk 0:00:25.3]} 42... Ra2 {[%clk 0:01:04.8]} 43. Kxh7 {[%clk 0:00:18.8]}
43... b2 {[%clk 0:01:04.9]} 44. Bc4 {[%clk 0:00:18.5]} 44... Ra4 {[%clk
0:01:02.8]} 45. Bd3 {[%clk 0:00:16.2]} 45... Rb4 {[%clk 0:01:01]} 46. Kg6 {[%clk
0:00:15.5]} 46... Bb5 {[%clk 0:00:58.7]} 47. Bxb5 {[%clk 0:00:09.7]} 47... Nxb5
{[%clk 0:00:59.6]} 0-1

[Event "*** SCC Grand Prix: Titled Tuesday Blitz"]
[Site "Chess.com"]
[Date "2020.08.11"]
[Round "3"]
[White "maxip32"]
[Black "GAusal"]
[Result "0-1"]
[WhiteElo "2466"]
[BlackElo "2156"]
[TimeControl "180+1"]
[EndTime "10:29:05 PDT"]
[Termination "GAusal won by resignation"]

1. e4 {[%clk 0:03:00.9]} 1... c5 {[%clk 0:02:56.8]} 2. Nf3 {[%clk 0:03:00.6]}
2... d6 {[%clk 0:02:54.8]} 3. d4 {[%clk 0:03:00]} 3... cxd4 {[%clk 0:02:48.6]}
4. Nxd4 {[%clk 0:03:00.9]} 4... Nf6 {[%clk 0:02:48.4]} 5. Nc3 {[%clk 0:02:59.7]}
5... g6 {[%clk 0:02:48.5]} 6. Be3 {[%clk 0:02:52.4]} 6... Bg7 {[%clk 0:02:44.4]}
7. f3 {[%clk 0:02:50.8]} 7... O-O {[%clk 0:02:36.3]} 8. Qd2 {[%clk 0:02:50.9]}
8... Nc6 {[%clk 0:02:20.7]} 9. g4 {[%clk 0:02:48.5]} 9... Nxd4 {[%clk
0:02:15.6]} 10. Bxd4 {[%clk 0:02:42.1]} 10... Be6 {[%clk 0:02:15.7]} 11. h4
{[%clk 0:02:40.6]} 11... h5 {[%clk 0:02:04.5]} 12. g5 {[%clk 0:02:32.9]} 12...
Nd7 {[%clk 0:02:00.1]} 13. O-O-O {[%clk 0:02:30.3]} 13... Bxd4 {[%clk 0:01:56]}
14. Qxd4 {[%clk 0:02:29.8]} 14... Qb6 {[%clk 0:01:53.2]} 15. Qd2 {[%clk
0:02:06.9]} 15... Ne5 {[%clk 0:01:48.7]} 16. Be2 {[%clk 0:02:02.7]} 16... Rac8
{[%clk 0:01:44.3]} 17. f4 {[%clk 0:01:17.3]} 17... Nc4 {[%clk 0:01:39.7]} 18.
Bxc4 {[%clk 0:01:17.2]} 18... Rxc4 {[%clk 0:01:36.1]} 19. Rhf1 {[%clk
0:01:05.4]} 19... Qa5 {[%clk 0:01:31.2]} 20. Kb1 {[%clk 0:00:40.7]} 20... Rxe4
{[%clk 0:01:22.1]} 21. a3 {[%clk 0:00:34.6]} 21... Rc4 {[%clk 0:01:17.4]} 22. f5
{[%clk 0:00:26.9]} 22... Bxf5 {[%clk 0:01:13]} 23. Nd5 {[%clk 0:00:18.9]} 23...
Bxc2+ {[%clk 0:01:03]} 24. Ka1 {[%clk 0:00:18.1]} 24... Qxd2 {[%clk 0:00:58.6]}
25. Nxe7+ {[%clk 0:00:18]} 25... Kg7 {[%clk 0:00:55.6]} 26. Rxd2 {[%clk
0:00:18.9]} 26... Ba4 {[%clk 0:00:49.8]} 27. Rxd6 {[%clk 0:00:16.7]} 27... Rxh4
{[%clk 0:00:46.8]} 28. Nd5 {[%clk 0:00:11.1]} 28... Bb3 {[%clk 0:00:45.7]} 29.
Nf6 {[%clk 0:00:08.8]} 29... Be6 {[%clk 0:00:43]} 30. Rc1 {[%clk 0:00:06.2]}
30... Rh2 {[%clk 0:00:40.5]} 31. a4 {[%clk 0:00:02.7]} 31... Rg2 {[%clk
0:00:40.3]} 32. a5 {[%clk 0:00:02.4]} 32... Rxg5 {[%clk 0:00:39.5]} 33. Ne4
{[%clk 0:00:02]} 33... Rxa5+ {[%clk 0:00:38.9]} 34. Kb1 {[%clk 0:00:02.5]} 34...
Bf5 {[%clk 0:00:38.7]} 0-1

[Event "*** SCC Grand Prix: Titled Tuesday Blitz"]
[Site "Chess.com"]
[Date "2020.08.11"]
[Round "3"]
[White "a3aki"]
[Black "ace_mar"]
[Result "0-1"]
[WhiteElo "2067"]
[BlackElo "2468"]
[TimeControl "180+1"]
[EndTime "10:29:05 PDT"]
[Termination "ace_mar won by checkmate"]

1. e4 {[%clk 0:00:56.9]} 1... e5 {[%clk 0:02:56.5]} 2. Bc4 {[%clk 0:00:56.1]}
2... Nf6 {[%clk 0:02:57]} 3. d3 {[%clk 0:00:55.5]} 3... c6 {[%clk 0:02:57.6]} 4.
Nc3 {[%clk 0:00:56.2]} 4... d5 {[%clk 0:02:56]} 5. Bb3 {[%clk 0:00:56.9]} 5...
dxe4 {[%clk 0:02:47]} 6. Nxe4 {[%clk 0:00:56.2]} 6... Nxe4 {[%clk 0:02:46.9]} 7.
dxe4 {[%clk 0:00:56.8]} 7... Qxd1+ {[%clk 0:02:47.5]} 8. Kxd1 {[%clk 0:00:57.7]}
8... Bc5 {[%clk 0:02:46.1]} 9. Be3 {[%clk 0:00:55.6]} 9... Bxe3 {[%clk
0:02:44.4]} 10. fxe3 {[%clk 0:00:55.5]} 10... Nd7 {[%clk 0:02:43.3]} 11. c3
{[%clk 0:00:54.8]} 11... f6 {[%clk 0:02:35.2]} 12. Ne2 {[%clk 0:00:53.4]} 12...
Nc5 {[%clk 0:02:31]} 13. Bc2 {[%clk 0:00:52.6]} 13... Bg4 {[%clk 0:02:31.3]} 14.
Ke1 {[%clk 0:00:52.1]} 14... O-O-O {[%clk 0:02:25.9]} 15. Rd1 {[%clk 0:00:50.3]}
15... Rxd1+ {[%clk 0:02:15.2]} 16. Kxd1 {[%clk 0:00:49.4]} 16... Rd8+ {[%clk
0:02:14.8]} 17. Ke1 {[%clk 0:00:48.9]} 17... Nd3+ {[%clk 0:01:56.3]} 18. Bxd3
{[%clk 0:00:48.6]} 18... Rxd3 {[%clk 0:01:57.2]} 19. h3 {[%clk 0:00:48.3]} 19...
Bh5 {[%clk 0:01:56.4]} 20. g4 {[%clk 0:00:47.7]} 20... Bg6 {[%clk 0:01:56.6]}
21. Kf2 {[%clk 0:00:46.1]} 21... Bxe4 {[%clk 0:01:52.4]} 22. Re1 {[%clk
0:00:40.4]} 22... Rd2 {[%clk 0:01:51.2]} 23. b4 {[%clk 0:00:38]} 23... Bd3
{[%clk 0:01:47.5]} 24. Kf3 {[%clk 0:00:36.8]} 24... Bxe2+ {[%clk 0:01:46.7]} 25.
Rxe2 {[%clk 0:00:36.7]} 25... Rxe2 {[%clk 0:01:47.2]} 26. Kxe2 {[%clk
0:00:37.4]} 26... Kd7 {[%clk 0:01:47.5]} 27. Kf3 {[%clk 0:00:37.8]} 27... Ke6
{[%clk 0:01:44.1]} 28. Ke4 {[%clk 0:00:38.1]} 28... g6 {[%clk 0:01:43.1]} 29. c4
{[%clk 0:00:38.3]} 29... f5+ {[%clk 0:01:43.1]} 30. gxf5+ {[%clk 0:00:38.5]}
30... gxf5+ {[%clk 0:01:44]} 31. Kf3 {[%clk 0:00:38.1]} 31... b6 {[%clk
0:01:40]} 32. e4 {[%clk 0:00:37.5]} 32... fxe4+ {[%clk 0:01:25]} 33. Kxe4 {[%clk
0:00:37]} 33... Kf6 {[%clk 0:01:24.8]} 34. h4 {[%clk 0:00:36.2]} 34... h5 {[%clk
0:01:23.5]} 35. a4 {[%clk 0:00:34.9]} 35... Ke6 {[%clk 0:01:20.7]} 36. b5 {[%clk
0:00:29]} 36... c5 {[%clk 0:01:16.3]} 37. Kd3 {[%clk 0:00:21.8]} 37... Kf5
{[%clk 0:01:15.5]} 38. Ke3 {[%clk 0:00:22.4]} 38... e4 {[%clk 0:01:15.1]} 39.
Kf2 {[%clk 0:00:20.5]} 39... Kf4 {[%clk 0:01:14.2]} 40. Ke2 {[%clk 0:00:20.6]}
40... e3 {[%clk 0:01:13.6]} 41. Ke1 {[%clk 0:00:19.3]} 41... Ke4 {[%clk
0:01:13.5]} 42. Ke2 {[%clk 0:00:19.5]} 42... Kd4 {[%clk 0:01:13.1]} 43. a5
{[%clk 0:00:19.3]} 43... bxa5 {[%clk 0:01:12.1]} 44. b6 {[%clk 0:00:20.2]} 44...
axb6 {[%clk 0:01:12.1]} 45. Kf3 {[%clk 0:00:20.6]} 45... Kd3 {[%clk 0:01:11.7]}
46. Kf4 {[%clk 0:00:21.5]} 46... e2 {[%clk 0:01:11.9]} 47. Kf5 {[%clk 0:00:22]}
47... e1=Q {[%clk 0:01:12.3]} 48. Kg6 {[%clk 0:00:22.1]} 48... Kxc4 {[%clk
0:01:12.5]} 49. Kf6 {[%clk 0:00:19.8]} 49... Qxh4+ {[%clk 0:01:12]} 50. Kf5
{[%clk 0:00:20.7]} 50... Qg4+ {[%clk 0:01:12.4]} 51. Ke5 {[%clk 0:00:21.3]}
51... h4 {[%clk 0:01:11.7]} 52. Kd6 {[%clk 0:00:21.5]} 52... h3 {[%clk
0:01:11.7]} 53. Kc6 {[%clk 0:00:22.3]} 53... h2 {[%clk 0:01:10.8]} 54. Kb7
{[%clk 0:00:23.2]} 54... h1=Q+ {[%clk 0:01:10.6]} 55. Ka6 {[%clk 0:00:24.1]}
55... Qa8+ {[%clk 0:01:10]} 56. Kxb6 {[%clk 0:00:20.5]} 56... Qe6+ {[%clk
0:01:09.9]} 57. Kc7 {[%clk 0:00:20.6]} 57... Qec6# {[%clk 0:01:09.7]} 0-1

[Event "*** SCC Grand Prix: Titled Tuesday Blitz"]
[Site "Chess.com"]
[Date "2020.08.11"]
[Round "3"]
[White "IMHansNiemann"]
[Black "VishnuPrasanna"]
[Result "1/2-1/2"]
[WhiteElo "2921"]
[BlackElo "2686"]
[TimeControl "180+1"]
[EndTime "10:29:06 PDT"]
[Termination "Game drawn by repetition"]

1. d4 {[%clk 0:03:00.9]} 1... d5 {[%clk 0:02:58.4]} 2. Nc3 {[%clk 0:03:00.5]}
2... Nf6 {[%clk 0:02:57.9]} 3. Bf4 {[%clk 0:03:01]} 3... e6 {[%clk 0:02:57.4]}
4. e3 {[%clk 0:03:01.1]} 4... a6 {[%clk 0:02:57.7]} 5. Nf3 {[%clk 0:03:01.2]}
5... Bd6 {[%clk 0:02:57.2]} 6. Bd3 {[%clk 0:03:00.8]} 6... b5 {[%clk 0:02:56.7]}
7. O-O {[%clk 0:02:55.6]} 7... Bb7 {[%clk 0:02:56.2]} 8. a3 {[%clk 0:02:50.6]}
8... Nbd7 {[%clk 0:02:56.4]} 9. Ne2 {[%clk 0:02:42.4]} 9... Nf8 {[%clk
0:02:36.8]} 10. c3 {[%clk 0:02:34.5]} 10... Ng6 {[%clk 0:02:36.4]} 11. Bxd6
{[%clk 0:02:32.2]} 11... cxd6 {[%clk 0:02:27.1]} 12. a4 {[%clk 0:02:27.2]} 12...
Bc6 {[%clk 0:02:17.6]} 13. axb5 {[%clk 0:02:20.2]} 13... Bxb5 {[%clk 0:02:17.4]}
14. Bxb5+ {[%clk 0:02:10.3]} 14... axb5 {[%clk 0:02:18.3]} 15. Qb3 {[%clk
0:02:10.7]} 15... O-O {[%clk 0:02:18.3]} 16. Nd2 {[%clk 0:01:47.6]} 16... Qd7
{[%clk 0:02:13.5]} 17. Rfb1 {[%clk 0:01:42]} 17... Ne7 {[%clk 0:02:09.4]} 18.
Nc1 {[%clk 0:01:41.1]} 18... Ne4 {[%clk 0:02:03.5]} 19. Qc2 {[%clk 0:01:19.3]}
19... Nxd2 {[%clk 0:01:58.4]} 20. Qxd2 {[%clk 0:01:20.2]} 20... Ra4 {[%clk
0:01:58.6]} 21. b3 {[%clk 0:01:16.9]} 21... Raa8 {[%clk 0:01:52.6]} 22. Nd3
{[%clk 0:01:14.9]} 22... Qb7 {[%clk 0:01:51.8]} 23. Qb2 {[%clk 0:01:13.9]} 23...
Nc6 {[%clk 0:01:51.6]} 24. h3 {[%clk 0:01:11.8]} 24... h6 {[%clk 0:01:51.1]} 25.
Kh2 {[%clk 0:01:04.7]} 25... Qb6 {[%clk 0:01:51.1]} 26. Ra2 {[%clk 0:01:00.7]}
26... b4 {[%clk 0:01:15.9]} 27. c4 {[%clk 0:00:36.2]} 27... dxc4 {[%clk
0:01:06.1]} 28. bxc4 {[%clk 0:00:37.1]} 28... Rxa2 {[%clk 0:01:06.4]} 29. Qxa2
{[%clk 0:00:37.9]} 29... e5 {[%clk 0:01:06.6]} 30. d5 {[%clk 0:00:14.5]} 30...
e4 {[%clk 0:01:06.9]} 31. dxc6 {[%clk 0:00:13.5]} 31... exd3 {[%clk 0:01:06.6]}
32. Qd2 {[%clk 0:00:14.1]} 32... Rb8 {[%clk 0:01:06.5]} 33. Qxd3 {[%clk
0:00:13.4]} 33... Qxc6 {[%clk 0:01:06.9]} 34. Rb3 {[%clk 0:00:13.2]} 34... Qc5
{[%clk 0:01:06.8]} 35. Qd4 {[%clk 0:00:13.7]} 35... Rc8 {[%clk 0:01:04]} 36. Qd2
{[%clk 0:00:12.7]} 36... Rb8 {[%clk 0:00:59.8]} 37. Qd4 {[%clk 0:00:12.6]} 37...
Kf8 {[%clk 0:00:57.3]} 38. Kg1 {[%clk 0:00:12.2]} 38... Rc8 {[%clk 0:00:51]} 39.
Qd2 {[%clk 0:00:10.8]} 39... Rb8 {[%clk 0:00:51.4]} 40. Qd4 {[%clk 0:00:10.7]}
40... Rc8 {[%clk 0:00:51.5]} 41. Qd2 {[%clk 0:00:10.7]} 41... Rb8 {[%clk
0:00:51.4]} 42. Qd4 {[%clk 0:00:10.9]} 1/2-1/2